Cogmind - Beta 13 @@@ ROGUE MODE // 2024.06.29 @ 01:14:59 Player: Xintrosi Result: Destroyed by G-50 Soldier with Heavy Laser Performance ------------- Evolutions (3) 1500 Regions Visited (12) 2400 Robots Destroyed (169) 845 Value Destroyed (5095) 5095 Prototype IDs (31) 620 Alien Tech Used (0) 0 Bonus (2340) 2340 TOTAL SCORE: 12800 Bonus ------- High Alert Combat Kills 923 Follower Combat Kills 643 Entered Garrisons 200 Used RIF Installer 1000 Aligned with FarCom 300 Friendly Fire -726 Cogmind --------- Core Integrity 0/700 Matter 225/300 Energy 160/160 System Corruption 0% Temperature Warm (169) Movement Treading (320) Ox2 Location -6/Proximity Caves Parts ------- > --- POWER (1) -------- Light Nuclear Core > --- PROPULSION (2) --- Light Treads Improved Treads > --- UTILITY (7) ------ Improved Coolant Injector Huge Storage Unit Improved Targeting Computer Core Analyzer Improved Medium Armor Plating Makeshift Light Armor Plating > --- WEAPON (3) ------- Assault Cannon Assault Cannon Assault Cannon > --- INVENTORY (25) --- Launcher Guidance Computer Particle Charger Hacking Suite Makeshift Hacking Suite Relay Coupler [Demolisher] (23) Component Analysis Suite Makeshift Laser Makeshift Laser Makeshift Laser Heavy Plasma Cannon Heavy Plasma Cannon KE Penetrator Assault Cannon Enhanced Gauss Cannon Hypervelocity Gauss Cannon AWS/Autocannon Improved Datajack Plasma Cutter Heavy Mace Scythe Makeshift Sword Greatsword Peak State ------------ > --- POWER ------------ (None) > --- PROPULSION ------- Armored Wheel Armored Wheel > --- UTILITY ---------- Huge Storage Unit Improved Medium Armor Plating Hacking Suite Relay Coupler [Swarmer] Relay Coupler [Grunt] Relay Coupler [Sentry] > --- WEAPON ----------- AWS/Autocannon > --- INVENTORY -------- Light Nuclear Core Light Nuclear Core Armored Wheel Armored Wheel Improved Coolant Injector Core Analyzer Improved Medium Armor Plating Improved Medium Armor Plating Improved Shield Generator Hacking Suite Relay Coupler [Demolisher] Long-range Tractor Beam Heavy Particle Cannon Minigun Minigun Advanced Assault Cannon Enhanced Gauss Cannon Hypervelocity Gauss Cannon Improved Datajack Plasma Cutter Heavy Mace [Rating: 59] Favorites ----------- Power Light Nuclear Core Engine Reinforced Ion Engine Power Core Light Nuclear Core Propulsion Armored Wheel Treads Light Treads Wheel Armored Wheel Utility Improved Heat Sink Device Improved Heat Sink Storage High-capacity Storage Unit Processor Core Analyzer Hackware Hacking Suite Protection Improved Medium Armor Plating Weapon Light Assault Rifle Energy Gun Particle Gun Energy Cannon Heavy Particle Cannon Ballistic Gun Light Assault Rifle Ballistic Cannon Advanced Assault Cannon Launcher Rocket Launcher Special Weapon Plasma Cutter Impact Weapon Heavy Mace Slashing Weapon Scythe Special Melee Weapon Improved Datajack Build | -11 -10 -10 -10 -9 -8 -8 -8 -7 -7 -7 -7 -6 ------- Run | Yrd Mat Min Exi Min Mat Gar Mat Fac Low Low Zio Pro Slots Evolved 6 | . . . . . 4 . . 2 . . . . Power . | . . . . . . . . . . . . . Propulsion . | . . . . . . . . . . . . . Utility 5 | . . . . . 3 . . 2 . . . . Weapon 1 | . . . . . 1 . . . . . . . Parts Attached 214 | 7 10 12 2 6 44 37 13 31 21 15 2 14 Power 16 | 1 1 1 . 1 4 3 1 . 3 . . 1 Engine 5 | 1 . . . . 3 1 . . . . . . Core 11 | . 1 1 . 1 1 2 1 . 3 . . 1 Reactor . | . . . . . . . . . . . . . Propulsion 24 | 2 3 2 2 1 3 2 . 2 2 3 . 2 Treads 7 | 1 . 2 . . . . . . 1 1 . 2 Leg . | . . . . . . . . . . . . . Wheel 17 | 1 3 . 2 1 3 2 . 2 1 2 . . Hover . | . . . . . . . . . . . . . Flight . | . . . . . . . . . . . . . Utility 45 | 2 3 2 . 1 7 4 3 12 8 1 1 1 Device 16 | 1 2 2 . 1 2 3 . 1 4 . . . Storage 3 | 1 1 . . . . . . 1 . . . . Processor 3 | . . . . . 1 . . . 2 . . . Hackware 6 | . . . . . 1 . 1 4 . . . . Protection 17 | . . . . . 3 1 2 6 2 1 1 1 Artifact . | . . . . . . . . . . . . . Weapon 129 | 2 3 7 . 3 30 28 9 17 8 11 1 10 Energy Gun 16 | 1 2 2 . 1 2 1 . . 2 2 . 3 Energy Cannon 7 | . . . . . . 2 1 3 1 . . . Ballistic Gun 30 | 1 . 4 . 1 15 1 . 1 4 2 . 1 Ballistic Cannon 24 | . . . . . . 12 4 3 1 . . 4 Launcher 15 | . 1 1 . 1 4 3 1 3 . . . 1 Special Weapon 4 | . . . . . 1 3 . . . . . . Impact Weapon 21 | . . . . . 8 6 1 2 . 3 . 1 Slashing Weapon 5 | . . . . . . . . . . 4 1 . Piercing Weapon . | . . . . . . . . . . . . . Special Melee Weapon 7 | . . . . . . . 2 5 . . . . Unidentified Prototypes . | . . . . . . . . . . . . . Parts Lost 40 | . 2 5 . . 4 3 . 10 9 . 1 6 Power 5 | . . . . . 1 . . 1 2 . . 1 Propulsion 9 | . 1 2 . . 1 . . 2 1 . 1 1 Utility 14 | . 1 1 . . . 2 . 5 3 . . 2 Weapon 12 | . . 2 . . 2 1 . 2 3 . . 2 Highest Loss Streak 9 | . 2 4 . . 1 1 . 9 6 . 1 6 To Critical Strikes 1 | . . . . . . . . . . . 1 . Average Slot Usage (%) 97 | . 98 99 100 100 99 98 100 98 91 100 98 85 Engine 1 | . 3 . . . 3 3 . . . . . . Core 8 | . 10 14 14 14 5 5 9 6 6 7 7 4 Treads 5 | . 4 26 19 . . . . . 1 3 . 5 Wheel 12 | . 22 1 8 28 18 18 18 14 8 10 13 3 Device 16 | . 13 13 14 14 13 17 10 11 20 23 23 15 Storage 9 | . 14 14 14 14 9 9 9 7 7 7 7 7 Processor 5 | . . . . . 9 5 . . 7 15 15 15 Hackware 6 | . . . . . 8 9 16 22 5 . . . Protection 4 | . . . . . 4 3 9 9 6 7 7 9 Energy Gun 4 | . 23 . . 12 10 1 . . 2 4 . 18 Energy Cannon 1 | . . . . . . 7 1 1 . . . . Ballistic Gun 10 | . 4 26 28 7 13 2 . 2 14 2 . . Ballistic Cannon 3 | . . . . . . 7 19 11 3 . . 1 Launcher 1 | . . . . 8 . 2 . 4 . . . . Impact Weapon 1 | . . . . . 2 3 3 . . 4 7 1 Slashing Weapon 1 | . . . . . . . . . . 10 14 . Naked Turns . | . . . . . . . . . . . . . Heaviest Build 147 | 12 51 51 48 52 61 75 84 147 114 107 106 105 Greatest Support 43 | 10 26 40 40 26 28 24 24 24 24 43 22 43 Greatest Overweight (x) 12 | 1 5 1 1 2 2 3 3 12 9 8 10 10 Average Overweight (x) 3 | . 1 1 1 1 1 2 2 4 7 5 4 7 Largest Inventory Capacity 25 | 8 20 20 20 20 20 20 20 25 25 25 25 25 Average Capacity 21 | 7 16 20 20 20 20 20 20 24 25 25 25 25 Most Carried 25 | 3 16 19 20 20 20 20 20 25 25 25 25 25 Average Carried 19 | 2 9 17 19 19 19 19 19 23 18 24 24 24 Final Capacity 25 | 8 20 20 20 20 20 20 20 25 25 25 25 25 Final Carried 25 | 3 16 19 20 20 20 20 20 20 23 25 25 25 Class Distribution -------------------- 25% | Mutant 16% | Scavenger-Skirmisher 10% | Tank 10% | Derelict-Mutant 8% | Bothacker-Mutant 7% | Derelict-Gunner 7% | Scavenger-Mutant 7% | Bothacker-Skirmisher Dominant Class ---------------- Scavenger-Mutant | -10/Materials Mutant | -10/Mines Mutant | -10/Exiles Mutant | -9/Mines Scavenger-Skirmisher | -8/Materials Scavenger-Skirmisher | -8/Garrison Bothacker-Skirmisher | -8/Materials Bothacker-Skirmisher | -7/Factory Tank | -7/Lower Caves Derelict-Mutant | -7/Lower Caves Derelict-Mutant | -7/Zion Derelict-Gunner | -6/Proximity Caves Resources | -11 -10 -10 -10 -9 -8 -8 -8 -7 -7 -7 -7 -6 ----------- Run | Yrd Mat Min Exi Min Mat Gar Mat Fac Low Low Zio Pro Matter Collected 4858 | 211 246 230 . 69 924 844 402 735 710 256 20 211 Remotely 1037 | . . . . . . . . . 710 256 3 68 Salvage Created 4742 | 28 261 144 . 198 1365 838 280 961 286 203 . 178 Parts 312 | 2 15 15 . 12 87 54 25 78 11 7 . 6 Haulers Intercepted 7 | . 1 . . . 3 . . 3 . . . . Recyclers Shooed 1 | . . . . . . . . 1 . . . . Parts Field Recycled . | . . . . . . . . . . . . . Retrieved Matter . | . . . . . . . . . . . . . Parts Self-Destructed 50 | . . . . . . . . . 33 6 . 11 Prevented . | . . . . . . . . . . . . . Kills | -11 -10 -10 -10 -9 -8 -8 -8 -7 -7 -7 -7 -6 ------- Run | Yrd Mat Min Exi Min Mat Gar Mat Fac Low Low Zio Pro Combat Hostiles Destroyed 132 | . 6 5 . 6 27 33 7 32 6 4 . 6 Guns 44 | . 5 3 . 3 18 2 . 3 3 4 . 3 Cannons 31 | . . . . . . 8 7 10 3 . . 3 AOE 56 | . 1 2 . 3 9 23 . 18 . . . . Classes Destroyed 20 | 1 5 1 . . 5 2 . 5 . . . 1 Worker 9 | . 1 . . . 1 . 1 6 . . . . Builder 15 | . 1 1 . . 4 . . 9 . . . . Tunneler 1 | 1 . . . . . . . . . . . . Hauler 7 | . 1 . . . 3 . . 3 . . . . Recycler 4 | . . . . . . . . 4 . . . . Mechanic 1 | . 1 . . . . . . . . . . . Operator 3 | . . . . . 1 . 2 . . . . . Drone 2 | . . . . . . . . . . . . 2 Watcher 5 | . . . . . 3 . 2 . . . . . Swarmer 31 | . . 3 . 3 5 9 6 2 2 . . 1 Cutter 2 | . . . . . . 2 . . . . . . Grunt 59 | . 6 2 . 4 12 17 . 13 1 2 . 2 Brawler 3 | . . . . . . 1 . 1 . 1 . . Duelist 3 | . . . . . 1 1 . 1 . . . . Protector 1 | . . . . . . . . 1 . . . . Sentry 14 | . . . . . 8 3 . . 2 . . 1 Specialist 1 | . . . . . . . . 1 . . . . Hunter 4 | . . . . . 2 . 1 . 1 . . . Programmer 2 | . . . . . . . . 1 . 1 . . Assembled 13 | . . . . . . . . 13 . . . . Savage 1 | . . . . . . . 1 . . . . . Guerrilla 1 | . . . . . . . 1 . . . . . Best Kill Streak 17 | 1 4 3 . 3 6 9 3 17 2 3 . 4 Combat Bots Only 13 | . 2 3 . 3 6 9 3 13 2 3 . 4 Max Kills in Single Turn 6 | 1 1 2 . 2 3 4 2 6 2 2 . 1 Gunslinging 1 | . . . . 1 1 . . . . 1 . . Exploded 4 | . 1 2 . 2 2 4 . 4 . . . . Melee . | . . . . . . . . . . . . . Uniques/NPCs Destroyed . | . . . . . . . . . . . . . Combat | -11 -10 -10 -10 -9 -8 -8 -8 -7 -7 -7 -7 -6 -------- Run | Yrd Mat Min Exi Min Mat Gar Mat Fac Low Low Zio Pro Hostile Shots Fired 632 | . 27 35 . 5 121 46 29 152 108 11 25 73 Missed 166 | . 6 2 . . 34 15 14 38 27 1 12 17 Damage Taken 7465 | . 274 402 . 55 1325 544 226 2106 1314 124 54 1041 Core 1382 | . 42 104 . 21 344 86 81 341 100 12 . 251 Absorbed by Shields 136 | . . . . . . . . . 63 33 19 21 Regen/Repaired (Parts) 55 | . . . . . 55 . . . . . . . Core Remaining (%) 46 | 100 . . . 33 . . 7 . . . . . Volleys Fired 279 | 1 23 19 . 6 83 43 19 33 20 4 . 28 Largest 3 | 2 2 2 . 2 3 3 3 3 3 3 . 3 Hottest 193 | 70 115 115 . 40 158 184 193 180 125 130 . 150 Shots Fired 589 | 2 41 33 . 10 194 78 45 79 52 13 . 42 Gun 341 | 2 36 32 . 8 169 8 . 9 42 13 . 22 Cannon 159 | . . . . . . 41 43 45 10 . . 20 Launcher 85 | . 5 1 . 2 21 29 2 25 . . . . Special 4 | . . . . . 4 . . . . . . . Kinetic 321 | 1 7 14 . 8 91 29 42 50 50 4 . 25 Thermal 183 | 1 29 18 . . 82 20 1 4 2 9 . 17 Explosive 85 | . 5 1 . 2 21 29 2 25 . . . . Electromagnetic . | . . . . . . . . . . . . . Robot Hit Streak 19 | 1 19 6 . 4 16 6 4 5 7 8 . 14 Robot Miss Streak 7 | 1 4 3 . 2 3 5 4 7 2 1 . 2 Penetration Max 1 | . . . . . 1 1 . . 1 . . . Secondary Targets 6 | . 1 . . 1 2 . . . . 2 . . Max Gunslinging Chain 2 | . 1 . . 1 1 . . . . 2 . . Autonomous 15 | . . . . . . . . 15 . . . . Shots Hit Robots 349 | 1 27 17 . 5 119 31 20 55 31 11 . 32 Core Hits 308 | 1 25 9 . 8 76 53 15 84 15 9 . 13 Critical Kills 12 | . . . . . 1 2 6 2 . 1 . . Critical Parts Destroyed 2 | . . . . . 1 . 1 . . . . . Critical Strikes 29 | . 2 . . . 5 2 9 3 1 3 . 4 Burn 7 | . 2 . . . 3 . . . . 2 . . Destroy 14 | . . . . . 2 2 7 2 . 1 . . Blast 8 | . . . . . . . 2 1 1 . . 4 Melee Attacks 62 | . . . . . 15 17 8 18 . 2 1 1 Impact 39 | . . . . . 15 17 4 2 . . . 1 Slashing 3 | . . . . . . . . . . 2 1 . Piercing . | . . . . . . . . . . . . . Sneak Attacks 7 | . . . . . . . 2 5 . . . . Combat Hostiles 2 | . . . . . . . . 2 . . . . Follow-up Attacks . | . . . . . . . . . . . . . Damage Inflicted 14284 | 23 670 305 . 181 2940 2607 672 5252 681 214 . 739 Guns 3744 | 23 377 221 . 59 1792 25 . 211 494 214 . 328 Cannons 2910 | . . . . . . 491 445 1376 187 . . 411 Explosions 7373 | . 293 84 . 122 1148 2091 72 3563 . . . . Melee 257 | . . . . . . . 155 102 . . . . Ramming . | . . . . . . . . . . . . . Kinetic 4610 | 10 50 65 . 59 966 216 445 1537 656 88 . 518 Thermal 2044 | 13 327 156 . . 826 300 . 50 25 126 . 221 Explosive 7373 | . 293 84 . 122 1148 2091 72 3563 . . . . Electromagnetic . | . . . . . . . . . . . . . Impact 257 | . . . . . . . 155 102 . . . . Slashing . | . . . . . . . . . . . . . Piercing . | . . . . . . . . . . . . . Highest Corruption 5 | . . . . . . . . 5 5 5 5 . Average Corruption 5 | . . . . . . . . 5 5 5 5 . Corruption Purged . | . . . . . . . . . . . . . Corruption Blocked . | . . . . . . . . . . . . . Effects 81 | . . . . . . . . . 48 25 8 . Message Errors 13 | . . . . . . . . . 9 4 . . Matter Fused 28 | . . . . . . . . . 15 11 2 . Heat Flow Errors 8 | . . . . . . . . . 7 . 1 . Energy Discharges 6 | . . . . . . . . . 3 1 2 . Parts Fused 1 | . . . . . . . . . . . 1 . Data Loss (minor) 11 | . . . . . . . . . 8 3 . . Data Loss (major) 7 | . . . . . . . . . 2 3 2 . Misfires 4 | . . . . . . . . . 1 3 . . Alerts 2 | . . . . . . . . . 2 . . . Weapon Failures 1 | . . . . . . . . . 1 . . . Overload Shots . | . . . . . . . . . . . . . Overflow Damage 698 | . . 13 . . 63 85 29 496 . . . 12 Projectiles 293 | . . . . . . 9 29 243 . . . 12 Explosions 371 | . . 13 . . 63 76 . 219 . . . . Melee 34 | . . . . . . . . 34 . . . . Knockbacks 12 | . . . . . . 2 3 5 . . . 2 Impact 1 | . . . . . . . . 1 . . . . Kinetic 11 | . . . . . . 2 3 4 . . . 2 Secondary . | . . . . . . . . . . . . . Self-Inflicted Damage 389 | . . 32 . . 113 62 . 182 . . . . Shots 10 | . . 1 . . 4 2 . 3 . . . . Rammed . | . . . . . . . . . . . . . Targets Rammed . | . . . . . . . . . . . . . Kicked . | . . . . . . . . . . . . . Crushed . | . . . . . . . . . . . . . Highest Temperature 411 | 30 375 411 . . 210 93 234 196 170 179 143 195 Average Temperature 77 | 18 120 193 . . 55 31 50 64 57 72 80 82 Received Heat Transfer 2080 | . 153 150 . 27 456 243 36 462 280 54 . 219 Effects 6 | . 3 3 . . . . . . . . . . Shutdowns 1 | . 1 . . . . . . . . . . . Interference 3 | . 2 1 . . . . . . . . . . Damage (minor) 2 | . . 2 . . . . . . . . . . Siege Activations . | . . . . . . . . . . . . . Robots Corrupted . | . . . . . . . . . . . . . Combat Hostiles . | . . . . . . . . . . . . . Parts Fried . | . . . . . . . . . . . . . Impact Corruptions 1 | . . . . . . . . 1 . . . . Robots Melted . | . . . . . . . . . . . . . Combat Hostiles . | . . . . . . . . . . . . . Parts Melted 9 | . 4 1 . . 3 . . . . . . 1 Heat Transferred 5106 | 37 1036 407 . . 2183 444 . 74 37 407 . 481 Parts Sabotaged . | . . . . . . . . . . . . . Parts Stolen . | . . . . . . . . . . . . . Parts Stripped . | . . . . . . . . . . . . . Power Chain Reactions . | . . . . . . . . . . . . . Alert | -11 -10 -10 -10 -9 -8 -8 -8 -7 -7 -7 -7 -6 ------- Run | Yrd Mat Min Exi Min Mat Gar Mat Fac Low Low Zio Pro Peak Influence 1812 | 5 187 166 . 176 534 1812 1132 923 . . . . Initial 883 | . 3 72 . . 68 346 883 369 . . . . Average 577 | 2 92 70 . 154 283 1296 970 503 . . . . Maximum Alert Level 5 | . . . . . 2 5 4 3 . . . . Low Security (%) 33 | 100 100 100 . 100 20 . . . . . . . Level 1 20 | . . . . . 66 2 . 31 . . . . Level 2 11 | . . . . . 12 3 . 54 . . . . Level 3 12 | . . . . . . 19 86 13 . . . . Level 4 16 | . . . . . . 57 13 . . . . . Level 5 4 | . . . . . . 17 . . . . . . High Security . | . . . . . . . . . . . . . Max Security . | . . . . . . . . . . . . . Squads Dispatched 17 | . 1 . . . 6 . 2 8 . . . . Investigation 3 | . . . . . 2 . . 1 . . . . Extermination 1 | . . . . . . . . 1 . . . . Reinforcement 9 | . 1 . . . 2 . 1 5 . . . . Assault 2 | . . . . . . . 1 1 . . . . Garrison 2 | . . . . . 2 . . . . . . . Intercept . | . . . . . . . . . . . . . Searches Triggered . | . . . . . . . . . . . . . Construction Impeded 5 | . . . . . 2 . . 3 . . . . Haulers Reinforced 1 | . . . . . . . . 1 . . . . Active Scanning Responses . | . . . . . . . . . . . . . Cargo Convoy Interrupts . | . . . . . . . . . . . . . Stealth | -11 -10 -10 -10 -9 -8 -8 -8 -7 -7 -7 -7 -6 --------- Run | Yrd Mat Min Exi Min Mat Gar Mat Fac Low Low Zio Pro Distress Signals 10 | . . . . . 5 . 2 2 . . . 1 Communications Jammed . | . . . . . . . . . . . . . Distress Signals . | . . . . . . . . . . . . . Times Spotted 217 | . 7 9 . 6 48 34 18 57 15 4 5 14 Peak Tracking Total 11 | . 4 3 . 3 8 5 5 10 11 3 4 7 Tactical Retreats 9 | . . . . . 6 . 1 . . . 2 . Traps | -11 -10 -10 -10 -9 -8 -8 -8 -7 -7 -7 -7 -6 ------- Run | Yrd Mat Min Exi Min Mat Gar Mat Fac Low Low Zio Pro Traps Triggered 10 | . . . . . 1 6 1 2 . . . . Indirectly . | . . . . . . . . . . . . . Trap Hack Attempts . | . . . . . . . . . . . . . Triggered . | . . . . . . . . . . . . . Disarmed . | . . . . . . . . . . . . . Reprogrammed 2 | . . . . . 2 . . . . . . . Reused . | . . . . . . . . . . . . . Traps Extracted . | . . . . . . . . . . . . . Installed . | . . . . . . . . . . . . . Triggered . | . . . . . . . . . . . . . Machines | -11 -10 -10 -10 -9 -8 -8 -8 -7 -7 -7 -7 -6 ---------- Run | Yrd Mat Min Exi Min Mat Gar Mat Fac Low Low Zio Pro Machines Disabled 25 | . . 1 . . 3 10 1 7 1 . . 2 Max in Single Turn 2 | . . 1 . . 1 2 1 2 1 . . 1 Garrison Relay 5 | . . . . . . 5 . . . . . . Machines Repaired . | . . . . . . . . . . . . . Machines Dismantled 5 | . . . . . . 5 . . . . . . Machines Sabotaged . | . . . . . . . . . . . . . Overloaded Fab Kills . | . . . . . . . . . . . . . Hacking | -11 -10 -10 -10 -9 -8 -8 -8 -7 -7 -7 -7 -6 --------- Run | Yrd Mat Min Exi Min Mat Gar Mat Fac Low Low Zio Pro Machines Accessed 34 | . 4 . 1 . 14 3 4 3 2 1 1 1 Terminals 23 | . 4 . . . 10 3 3 1 1 . . 1 Fabricators . | . . . . . . . . . . . . . Repair Stations 2 | . . . . . 1 . . 1 . . . . Recycling Units 1 | . . . . . . . . 1 . . . . Scanalyzers 3 | . . . . . 2 . 1 . . . . . Garrison Access 1 | . . . . . 1 . . . . . . . Total Hacks 94 | . 9 . 1 . 40 5 15 6 7 6 1 4 Successful 65 | . 5 . 1 . 27 2 10 2 7 6 1 4 Failed 29 | . 4 . . . 13 3 5 4 . . . . Catastrophic 10 | . 1 . . . 8 . . 1 . . . . Database Lockouts . | . . . . . . . . . . . . . Manual 38 | . 6 . 1 . 21 . 10 . . . . . Terminals 69 | . 9 . . . 30 5 13 2 6 . . 4 Fabricators . | . . . . . . . . . . . . . Repair Stations 5 | . . . . . 2 . . 3 . . . . Recycling Units 1 | . . . . . . . . 1 . . . . Scanalyzers 9 | . . . . . 7 . 2 . . . . . Garrison Access 1 | . . . . . 1 . . . . . . . Terminal Hacks 41 | . 3 . 1 . 11 2 6 . 7 6 1 4 Record 16 | . . . . . . . . . 6 6 . 4 Part Schematic 2 | . . . . . 1 . . . . . 1 . Prototype ID Bank 4 | . 1 . . . 2 . 1 . . . . . Open Door 2 | . . . . . . 1 . . 1 . . . Branch Access Points 1 | . 1 . . . . . . . . . . . Emergency Access Points 1 | . . . . . . 1 . . . . . . Terminal Index 1 | . . . . . . . 1 . . . . . Alert Level 1 | . . . . . 1 . . . . . . . Unreport Threat 3 | . . . . . 1 . 2 . . . . . Reprogram Traps 1 | . . . . . 1 . . . . . . . Security Status 1 | . . . . . 1 . . . . . . . Transport Status 1 | . . . . . 1 . . . . . . . Investigation Status 1 | . . . . . 1 . . . . . . . Hauler Manifests 3 | . 1 . . . 1 . 1 . . . . . Registered Components 2 | . . . . . 1 . 1 . . . . . Derelict Proto ID Bank 1 | . . . 1 . . . . . . . . . Fabricator Hacks . | . . . . . . . . . . . . . Repair Station Hacks 3 | . . . . . 2 . . 1 . . . . Scan Component 2 | . . . . . 1 . . 1 . . . . Repair 1 | . . . . . 1 . . . . . . . Recycling Unit Hacks 1 | . . . . . . . . 1 . . . . Report Inventory 1 | . . . . . . . . 1 . . . . Scanalyzer 9 | . . . . . 7 . 2 . . . . . Insert Component 4 | . . . . . 3 . 1 . . . . . Analyze 5 | . . . . . 4 . 1 . . . . . Garrison Access Hacks 1 | . . . . . 1 . . . . . . . Unlock Access 1 | . . . . . 1 . . . . . . . Unauthorized Hacks 10 | . 2 . . . 6 . 2 . . . . . Terminals 10 | . 2 . . . 6 . 2 . . . . . Botnet 10 | . 2 . . . 6 . 2 . . . . . Fabricators . | . . . . . . . . . . . . . Repair Stations . | . . . . . . . . . . . . . Recycling Units . | . . . . . . . . . . . . . Scanalyzers . | . . . . . . . . . . . . . Garrison Access . | . . . . . . . . . . . . . Data Cores Recovered 2 | . . . . . 1 . 1 . . . . . Used 2 | . . . . . 1 . 1 . . . . . Hacking Detections 24 | . 3 . . . 13 1 4 2 . . . 1 Full Trace Events 3 | . . . . . 2 . . 1 . . . . Feedback Events . | . . . . . . . . . . . . . Feedback Blocked . | . . . . . . . . . . . . . Robot Schematics Acquired . | . . . . . . . . . . . . . Robots Built . | . . . . . . . . . . . . . Authchips . | . . . . . . . . . . . . . Time . | . . . . . . . . . . . . . Total Robot Build Rating . | . . . . . . . . . . . . . Part Schematics Acquired 4 | . . . . . 3 . . . . . 1 . Parts Built . | . . . . . . . . . . . . . Authchips . | . . . . . . . . . . . . . Time . | . . . . . . . . . . . . . Total Part Build Rating . | . . . . . . . . . . . . . Parts Repaired 1 | . . . . . 1 . . . . . . . Time 16 | . . . . . 16 . . . . . . . Parts Recycled . | . . . . . . . . . . . . . Recycled Matter . | . . . . . . . . . . . . . Retrieved Matter . | . . . . . . . . . . . . . Retrieved Components . | . . . . . . . . . . . . . Parts Scanalyzed 3 | . . . . . 2 . 1 . . . . . Part Schematics Acquired 2 | . . . . . 2 . . . . . . . Parts Damaged . | . . . . . . . . . . . . . Bothacking | -11 -10 -10 -10 -9 -8 -8 -8 -7 -7 -7 -7 -6 ------------ Run | Yrd Mat Min Exi Min Mat Gar Mat Fac Low Low Zio Pro Used RIF Installer 2 | . . . . . . 2 . . . . . . Command Fork 1 | . . . . . . 1 . . . . . . Robots Hacked 13 | . . . . . . . 2 11 . . . . Non-combat 3 | . . . . . . . . 3 . . . . Combat 10 | . . . . . . . 2 8 . . . . Robot Hacks Applied 14 | . . . . . . . 2 12 . . . . parse_system 3 | . . . . . . . 1 2 . . . . find_station 1 | . . . . . . . . 1 . . . . find_garrison 1 | . . . . . . . . 1 . . . . reboot_system 1 | . . . . . . . . 1 . . . . streamctrl_high 1 | . . . . . . . . 1 . . . . formatsys_high 7 | . . . . . . . 1 6 . . . . Relay Couplers Released 21 | . . . . . . 21 . . . . . . Machine Destruction 21 | . . . . . . 21 . . . . . . Attached 5 | . . . . . . . 1 4 . . . . Fabnet Peak Effective % . | . . . . . . . . . . . . . Robots Rewired 3 | . . . . . . 3 . . . . . . Allies Hacked . | . . . . . . . . . . . . . Hacks Repelled . | . . . . . . . . . . . . . Allies | -11 -10 -10 -10 -9 -8 -8 -8 -7 -7 -7 -7 -6 -------- Run | Yrd Mat Min Exi Min Mat Gar Mat Fac Low Low Zio Pro Total Allies 15 | . . 3 . . . 3 1 8 . . . . Largest Group 3 | . . 3 3 2 2 3 2 3 . . . . Highest-Rated Group 84 | . . 40 40 24 24 84 59 77 . . . . Highest-Rated Ally 39 | . . 16 16 16 16 39 39 32 . . . . Total Orders 4 | . . . . . . . 2 2 . . . . STAY 2 | . . . . . . . 1 1 . . . . FOLLOW 2 | . . . . . . . 1 1 . . . . Ally Attacks 150 | . . 15 . 8 17 27 24 59 . . . . Total Damage 2445 | . . 178 . 80 180 627 300 1080 . . . . Kills 30 | . . 5 . . 3 8 4 10 . . . . Allies Corrupted 1 | . . . . . . . . 1 . . . . Allies Melted . | . . . . . . . . . . . . . Intel | -11 -10 -10 -10 -9 -8 -8 -8 -7 -7 -7 -7 -6 ------- Run | Yrd Mat Min Exi Min Mat Gar Mat Fac Low Low Zio Pro Robot Analysis Total . | . . . . . . . . . . . . . Derelict Logs Recovered 3 | . . 1 . 1 . . . . 1 . . . Drone Launches . | . . . . . . . . . . . . . Drone Recoveries . | . . . . . . . . . . . . . Exploration | -11 -10 -10 -10 -9 -8 -8 -8 -7 -7 -7 -7 -6 ------------- Run | Yrd Mat Min Exi Min Mat Gar Mat Fac Low Low Zio Pro Turns Passed 11704 | 88 309 1370 774 265 1715 1948 474 995 2015 994 394 363 Spaces Moved 6352 | 47 196 552 438 217 996 1238 280 525 956 557 246 104 Core 4 | 4 . . . . . . . . . . . . Treads 790 | . . 533 224 . . . . . . 1 . 32 Legs . | . . . . . . . . . . . . . Wheels 5558 | 43 196 19 214 217 996 1238 280 525 956 556 246 72 Hover . | . . . . . . . . . . . . . Flight . | . . . . . . . . . . . . . Fastest Speed 50 | 50 95 105 105 105 110 120 120 135 135 145 145 230 Average Speed 155 | 87 105 235 174 108 118 120 131 150 199 169 157 257 Slowest Speed 320 | 95 155 240 240 115 125 135 135 270 225 320 230 320 Overloaded Moves . | . . . . . . . . . . . . . Propulsion Burnouts . | . . . . . . . . . . . . . Robots Hopped 1 | . . . . . . . . . 1 . . . Cave-ins Triggered . | . . . . . . . . . . . . . Exploration Rate (%) 54 | 5 32 98 90 63 84 97 30 14 81 79 14 16 Regions Visited 12 Branch Regions 7 Pre-discovered Areas 4 | . . 1 . . . . . . 1 1 . 1 Known Exits Taken 3 | . 1 . . . 1 . . . 1 . . . Unknown Exits Taken 8 | 1 . 1 1 1 . . 1 1 . 1 1 . Scrap Searched 15 | . . 1 . 1 . . . . 10 3 . . Spaces Dug 56 | . . . . . 37 . 17 1 . 1 . . Terrain Destroyed 583 | . 31 9 . 10 165 82 33 241 2 1 . 9 Melee 17 | . . . . . 13 . 2 1 . 1 . . Projectile 46 | . . . . . 6 3 18 8 2 . . 9 AOE 520 | . 31 9 . 10 146 79 13 232 . . . . Terrain Rammed . | . . . . . . . . . . . . . Walls Destroyed . | . . . . . . . . . . . . . Machines Disabled . | . . . . . . . . . . . . . Actions | -11 -10 -10 -10 -9 -8 -8 -8 -7 -7 -7 -7 -6 --------- Run | Yrd Mat Min Exi Min Mat Gar Mat Fac Low Low Zio Pro Total 7527 | 88 257 590 449 238 1339 1542 337 659 1027 594 253 154 Wait 365 | 31 13 1 4 3 159 99 7 31 10 4 1 2 Move 6339 | 46 195 551 437 216 996 1237 279 524 953 556 245 104 Hop 1 | . . . . . . . . . 1 . . . Pick Up 99 | 3 13 6 1 2 18 16 4 8 16 6 1 5 Fast Attach 30 | 7 1 1 . 1 3 4 1 3 6 1 1 1 Attach 40 | . 2 4 . . 5 5 . 5 14 . . 5 Detach 8 | . 1 . . . . 1 . 2 3 . 1 . Swap 144 | . 7 7 2 5 36 28 12 23 1 14 1 8 Drop 79 | . 2 1 2 5 24 20 7 6 3 7 2 . Fire 279 | 1 23 19 . 6 83 43 19 33 20 4 . 28 Melee 61 | . . . . . 15 17 8 18 . 1 1 1 Ram . | . . . . . . . . . . . . . Kick . | . . . . . . . . . . . . . Crush . | . . . . . . . . . . . . . Escape Stasis 24 | . . . . . . 24 . . . . . . Rewire 33 | . . . 3 . . 23 . 6 . 1 . . Trap . | . . . . . . . . . . . . . Miscellaneous 25 | . . . . . . 25 . . . . . . Route ------- -11/Scrapyard -10/Materials (discovered 2 exits: [*Mat] / *Min) -10/Mines (discovered 4 exits: [*Mat x2] / *Exi / [*Sub]) -10/Exiles (discovered 2 exits: [*Min x2]) -9/Mines -8/Materials (discovered 6 exits: *Fac x3 / [*Sto x2] / Gar) -8/Garrison (discovered 3 exits: *Mat x3) -8/Materials -7/Factory -7/Lower Caves -7/Lower Caves (discovered 2 exits: *Fac / *Zio) -7/Zion -6/Proximity Caves (discovered 1 exit: Fac) History --------- Turn | Location | Event 11 | -11/Scrapyard | Discovered new exit (range 15) 89 | -11/Scrapyard | Entered Materials 125 | -10/Materials | Identified exit to Mines 328 | -10/Materials | Discovered new exit (range 3) 398 | -10/Materials | Entered Mines 467 | -10/Mines | Core integrity fell below 50% 497 | -10/Mines | Lost 4 parts (2n2w) 585 | -10/Mines | Discovered new exit (range 14) 772 | -10/Mines | Build established: Mutant 854 | -10/Mines | Assisted by bots powering up and referring to "LRC-V3" 938 | -10/Mines | Deemed a non-threat by the Exiles lab entrance 1012 | -10/Mines | Discovered new exit (range 8) 1074 | -10/Mines | Learned location of Mines (-9) 1087 | -10/Mines | Received a Rocket Launcher from a helpful Derelict 1602 | -10/Mines | Discovered new exit (range 10) 1758 | -10/Mines | Discovered new exit (range 5) 1768 | -10/Mines | Entered Exiles 1768 | -10/Exiles | Accompanied by 3 allies 1812 | -10/Exiles | Discovered new exit (range 14) 1845 | -10/Exiles | Met 8R-AWN 1879 | -10/Exiles | Met EX-HEX 1951 | -10/Exiles | Met EX-BIN 1987 | -10/Exiles | Aligned with FarCom system 1989 | -10/Exiles | Given EX-Vault access code 2044 | -10/Exiles | Opened EX-Vault 2060 | -10/Exiles | Found AWS/Autocannon 2114 | -10/Exiles | Warned to stay clear of 0b10 Research branches 2183 | -10/Exiles | Met EX-DEC 2338 | -10/Exiles | Visited The Gauntlet 2529 | -10/Exiles | Discovered new exit (range 10) 2542 | -10/Exiles | Left Exiles lab with AWS/Autocannon 2542 | -10/Exiles | Entered Mines 2542 | -9/Mines | Accompanied by 3 allies 2769 | -9/Mines | Learned location of 1 exit from Lower Caves 2799 | -9/Mines | Discovered new exit (range 5) 2807 | -9/Mines | Entered Materials 2807 | -8/Materials | Accompanied by 2 allies 2807 | -8/Materials | Evolved 4 slots: Utility x3, Weapon x1 2810 | -8/Materials | Discovered new exit (range 15) 3120 | -8/Materials | Build established: Scavenger-Skirmisher 3221 | -8/Materials | Discovered new exit (range 9) 3278 | -8/Materials | Discovered new exit (range 9) 3516 | -8/Materials | Discovered new exit (range 4) 3710 | -8/Materials | Repaired Particle Gun 3791 | -8/Materials | Discovered new exit (range 10) 4233 | -8/Materials | Core integrity fell below 50% 4394 | -8/Materials | Garrison activated, responded to threat 4522 | -8/Materials | Identified exit to Garrison 4522 | -8/Materials | Entered Garrison 4562 | -8/Garrison | Triggered checkpoint 4602 | -8/Garrison | Destroyed 9 combat bots 4634 | -8/Garrison | Triggered checkpoint 4643 | -8/Garrison | Triggered checkpoint 4697 | -8/Garrison | Triggered checkpoint 4754 | -8/Garrison | Triggered checkpoint 4855 | -8/Garrison | Discovered new exit (range 12) 5009 | -8/Garrison | Triggered checkpoint 5193 | -8/Garrison | Triggered checkpoint 5267 | -8/Garrison | Discovered new exit (range 11) 5608 | -8/Garrison | Discovered new exit (range 5) 5696 | -8/Garrison | Triggered checkpoint 5737 | -8/Garrison | Installed Relay Interface Framework 5769 | -8/Garrison | Garrison Relay disabled 5927 | -8/Garrison | Garrison Relay disabled 6114 | -8/Garrison | Triggered checkpoint 6171 | -8/Garrison | Expanded RIF knowledge: Command Fork 6212 | -8/Garrison | Garrison Relay disabled 6244 | -8/Garrison | Garrison Relay disabled 6470 | -8/Garrison | Entered Materials 6470 | -8/Materials | Accompanied by 2 allies 6515 | -8/Materials | Core integrity fell below 20% 6870 | -8/Materials | First assault squad dispatched 6926 | -8/Materials | Discovered new exit (range 9) 6944 | -8/Materials | Entered Factory 6944 | -7/Factory | Accompanied by 1 ally 6944 | -7/Factory | Evolved 2 slots: Utility x2 7470 | -7/Factory | Lost 3 allies 7490 | -7/Factory | Discovered new exit (range 9) 7744 | -7/Factory | First assault squad dispatched 7882 | -7/Factory | Destroyed 10 combat bots 7890 | -7/Factory | Assembled infested ambush trap array 7939 | -7/Factory | Entered Lower Caves 7940 | -7/Lower Caves | Identified exit to Lower Caves 7958 | -7/Lower Caves | Destroyed 13 combat bots 7964 | -7/Lower Caves | Lost 9 parts (1p2n4u2w) 7986 | -7/Lower Caves | Core integrity fell below 50% 8022 | -7/Lower Caves | Lost 3 parts (1p1u1w) 8248 | -7/Lower Caves | Encountered a Warlord checkpoint 8499 | -7/Lower Caves | Lost 6 parts (1p1n2u2w) 8590 | -7/Lower Caves | Attracted the attention of an 0b10 base 8606 | -7/Lower Caves | Learned location of 1 exit from Factory 8926 | -7/Lower Caves | Build established: Tank 9554 | -7/Lower Caves | Learned Factory emergency access door positions 9554 | -7/Lower Caves | Learned Factory stockpile data 9554 | -7/Lower Caves | Learned Factory security intel 9554 | -7/Lower Caves | Learned Research security intel 9878 | -7/Lower Caves | Build established: Derelict-Gunner 9954 | -7/Lower Caves | Entered another Lower Caves area 10091 | -7/Lower Caves | Learned Research emergency access door positions 10091 | -7/Lower Caves | Learned Extension terminal intel 10091 | -7/Lower Caves | Learned Armory garrison access intel 10179 | -7/Lower Caves | Discovered new exit (range 9) 10412 | -7/Lower Caves | Encountered a Warlord checkpoint 10707 | -7/Lower Caves | Build established: Derelict-Mutant 10777 | -7/Lower Caves | Discovered new exit (range 14) 10948 | -7/Lower Caves | Entered Zion 11124 | -7/Zion | Discovered new exit (range 15) 11239 | -7/Zion | System corruption cleaned by Quarantine Array 11245 | -7/Zion | RIF detected upon attempting to enter Zion 11245 | -7/Zion | Attacked by Zionites 11245 | -7/Zion | Spotted 4Z-7C4(B) 11245 | -7/Zion | Spotted NA-SEJ(B) 11342 | -7/Zion | Entered Proximity Caves 11344 | -6/Proximity Caves | Spotter reported a threat 11345 | -6/Proximity Caves | Spotter reported a threat 11520 | -6/Proximity Caves | Attracted the attention of an 0b10 base 11542 | -6/Proximity Caves | Core integrity fell below 20% 11578 | -6/Proximity Caves | Lost 6 parts (1p1n2u2w) 11643 | -6/Proximity Caves | Learned location of Armory (-3) 11643 | -6/Proximity Caves | Identified exit to Factory 11705 | -6/Proximity Caves | Destroyed by G-50 Soldier with Heavy Laser Last Messages --------------- 11602_ Storage Shell breached. 11611_ Acquired Assault Cannon. 11643_ Connecting with Outpost Terminal... 11643_ Current location identified: Proximity Caves >>Query(Status Report 694G) NEUTRALIZED MALFUNCTIONING DERELICT. >>Query(Status Report 598X) INTERCEPTED DERELICT INTEL. World map updated: -3/Armory. >>Query(Status Report 696I) REGISTERED NEW HOSTILE DERELICT. >>Query(Status Report 039X) INTERCEPTED DERELICT INTEL. Loading 1 Factory entrance... Data stored: Factory entrances (x3). 11679_ Acquired Lgt. Nuclear Core. 11683_ Acquired KE Penetrator. 11684_ Acquired 51 matter. 11688_ Acquired 4 matter. 11691_ Acquired 5 matter. Map ----- +----------------------------------------------------+ | ?????# #???????????????????????????? | | ????## ### #???????????????????????????? | | ##### ##?### ##??????????????????????????? | | # ###??## #??????????????????????????? | | # #???# #??????????????????????????? | | # # ###### ##??????????????????????????? | | # ## #####???????????????????????????? | | # ### ##?????????????????????????????? | | ??## #########?????????????????????? | | ???## ##????????????????????? | | ????## ##???????????????????? | | ????## ##??????????????????? | | ?? ???# #??????????????????? | | ?????? ##??????????????????? | | ?????? ######+#### ###???????????????????? | | ????? # " # #?????????????????????? | | ????? # " # # ##?????????????????????? | | ?????## ?#" ""# ###??????????????????????? | | ??????## ?# # ###??????????????????????? | | ???????## ?# #% #??????????????????????? | | ????????#??#"" + ##????????#?????????????? | | ???????????#"T %# ##??????? #?????????????? | | ???????????#"" # ##????? #?????????????? | | ???????????#"" """""; ;#### ###???????????? | | ????????# ####+####;; ; g ????????? | | ????????# @b #?????????????? | | ????????# %% g g ##?????????????? | | ????????###### % #??????????????? | | ?????????????## #; #?????????????? | | ??????????????## ##;# #????????????? | | ???????????????## ## ####### #????????????? | | ????????????????## # #??????? #????????????? | | ?????????????????## ####???????? ##????????????? | | ??????????????????####????????????##?????????????? | | ?????????????????????????????????????????????????? | | ?????????????????????????????????????????????????? | | ?????????????????????????????????????????????????? | | ?????????????????????????????????????????????????? | | ?????????????????????????????????????????????????? | | ?????????????????????????????????????????????????? | | ?????????????????????????????????????????????????? | | ?????????????????????????????????????????????????? | | ?????????????????????????????????????????????????? | | ?????????????????????????????????????????????????? | | ?????????????????????????????????????????????????? | | ?????????????????????????????????????????????????? | | ?????????????????????????????????????????????????? | | ?????????????????????????????????????????????????? | | ?????????????????????????????????????????????????? | | ?????????????????????????????????????????????????? | +----------------------------------------------------+ Best States ------------- Heat Dissipation 59 Coolant Potential 80 Energy Generation 18 Energy Capacity 310 Matter Stores 300 Matter Capacity 300 Sight Range 16 Terrain Scan Range 16 Terrain Scan Density 10 Armor Coverage 450 Evasion (%) 44 Targeting Accuracy 6 Core Analysis 6 Recoil Reduction 2 Offensive Hacking 10 Relay Coupler Types 3 Relay Coupler Value 66 Item Schematics ----------------- Imp. Propulsion Shielding | -8/Materials | Hacked Plasma Cutter | -8/Materials | Scanalyzed Imp. Datajack | -8/Materials | Scanalyzed Battle Rifle | -7/Zion | Free Robot Schematics ------------------ None Fabricated ------------ Nothing Alien Tech Used ----------------- None Achievements -------------- Assimilation Complete Dramatic Entrance Factory Defaults Challenges ------------ None Game ------ Seed PlatingAnalysisStick Manual? 0 Play Time 02:49:38 Cumulative 47.0 hours Start 2024.06.28 @ 01:50:23 End 2024.06.29 @ 01:14:59 Sessions 5 Manual Loads 0 Difficulty Rogue Special Mode None Game No. 21 Rogue 21 Adventurer 0 Explorer 0 Win Type - Total 0 Types 0/0/0/0/0/0/0/0/0 Lore% 27 Gallery% 34 Achievement% 32 Wizard Run 0 Options --------- Layout 0 ASCII 0 Keyboard 1 Movement Numpad Keybinds 0 Fullscreen 2 Font 18/SmallcapsGlow Map View 76x50 Zoom Use 0% Tactical HUD 1 Map Filters NONE Filters NONE Steam 1 RUN: 085ad914-eea9-476a-bf86-e5e4ac4643d3